bitfinex/quotes_SOLUSD_20240824
["timestamp","ask_amount","ask_price","bid_price","bid_amount"]
[1724494323684,15.8376,157.61,157.58,6.3459]
[1724494326097,1.77522922,157.6,157.54,15.8688]
[1724494326314,6.3456,157.59,157.54,22.2163]
[1724494326487,21.52424922,157.58,157.54,22.2163]
[1724494326889,1.52424922,157.57,157.54,22.2163]
[1724494328611,21.52424922,157.58,157.55,6.347]
[1724494328817,20.0,157.58,157.55,6.347]
[1724494329120,21.52424922,157.59,157.55,6.347]
[1724494330121,20.0,157.59,157.55,6.347]
[1724494330286,20.0,157.59,157.56,6.3467]
[1724494330488,7.86974922,157.6,157.56,6.3467]
[1724494330901,6.3438,157.64,157.59,6.3455]
[1724494331224,1.52424922,157.63,157.59,6.3455]
[1724494331516,6.3439,157.63,157.59,6.3455]
[1724494331823,6.3438,157.64,157.59,6.3455]
[1724494331995,1.52424922,157.63,157.59,6.3455]
[1724494332194,7.86824922,157.63,157.59,6.3455]
[1724494333111,21.52424922,157.62,157.59,6.3455]
[1724494334017,21.52424922,157.62,157.58,22.2103]
[1724494337892,46.289078,157.62,157.55,15.8677]
[1724494338111,6.346,157.58,157.54,6.3475]
[1724494338434,7.87064922,157.57,157.52,15.8704]
[1724494339003,7.87064922,157.57,157.52,22.2184]
[1724494342530,6.3464,157.57,157.53,6.3479]
[1724494343233,7.87064922,157.57,157.53,6.3479]
[1724494344422,7.87064922,157.57,157.52,22.2187]
[1724494344611,6.3464,157.57,157.52,22.2187]
[1724494344938,26.289078,157.56,157.49,15.8735]
[1724494345114,26.3475,157.55,157.5,1.58937394]
[1724494345302,1.52424922,157.54,157.5,6.349]
[1724494346849,1.52424922,157.54,157.49,22.2231]
[1724494347011,6.348,157.53,157.49,15.8735]
[1724494347211,1.52424922,157.52,157.49,15.8735]
[1724494347713,16.4145,157.51,157.49,15.8735]
[1724494347914,17.93874922,157.51,157.49,15.8735]
[1724494348546,17.93874922,157.51,157.47,6.3503]
[1724494351422,24.28764922,157.51,157.46,22.2272]
[1724494352720,26.3492,157.5,157.46,15.8765]
[1724494352921,1.52424922,157.49,157.46,15.8765]
[1724494353759,6.3506,157.47,157.45,1.22878583]
[1724494353923,1.52424922,157.46,157.45,1.22878583]
[1724494355643,6.3506,157.47,157.45,1.22878583]
[1724494356357,16.4145,157.51,157.45,1.22878583]
[1724494356536,16.4145,157.51,157.49,6.3495]
[1724494357148,16.4145,157.51,157.47,22.2253]
[1724494357352,16.4145,157.51,157.48,6.3498]
[1724494357530,1.52424922,157.5,157.48,6.3498]
[1724494357849,1.52424922,157.5,157.45,1.22878583]
[1724494358054,1.52424922,157.5,157.45,7.57978583]
[1724494358055,27.87344922,157.5,157.45,7.57978583]
[1724494358429,1.52424922,157.5,157.46,6.3508]
[1724494358643,66.52424922,157.5,157.46,6.3508]
[1724494358948,65.0,157.5,157.46,6.3508]
[1724494359244,71.3493,157.5,157.45,7.57988583]
[1724494360427,0.12549,157.49,157.45,7.57988583]
[1724494360837,1.64973922,157.49,157.45,1.22878583]
[1724494361261,6.35,157.48,157.45,1.22878583]
[1724494361758,1.64973922,157.49,157.45,1.22878583]
[1724494361963,6.35,157.48,157.45,1.22878583]
[1724494362133,1.52424922,157.47,157.45,1.22878583]
[1724494362752,6.35,157.48,157.45,1.22878583]
[1724494363654,46.64973922,157.47,157.45,1.22878583]
[1724494364245,45.12549,157.47,157.45,1.22878583]
[1724494364768,1.52424922,157.47,157.45,1.22878583]
[1724494365636,46.52424922,157.47,157.45,1.22878583]
[1724494366370,52.87464922,157.47,157.45,1.22878583]
[1724494366665,0.12549,157.46,157.45,1.22878583]
[1724494367038,46.52424922,157.47,157.45,1.22878583]
[1724494367258,45.0,157.47,157.45,1.22878583]
[1724494369774,1.52424922,157.46,157.45,1.22878583]
[1724494369948,8.00053922,157.46,157.45,1.22878583]
[1724494370139,77.890858,157.46,157.45,1.22878583]
[1724494370545,97.890858,157.46,157.45,1.22878583]
[1724494370765,96.36660878,157.46,157.45,1.22878583]
[1724494371242,112.79000878,157.46,157.45,1.22878583]
[1724494372474,67.53902878,157.46,157.45,1.22878583]
[1724494372773,7.55304922,157.49,157.45,1.22878583]
[1724494372971,1.52424922,157.48,157.45,23.45728583]
[1724494373350,13.90264922,157.49,157.45,23.45728583]
[1724494373674,1.52424922,157.48,157.45,23.45728583]
[1724494374058,21.52424922,157.48,157.45,23.45728583]
[1724494374547,21.52424922,157.48,157.46,6.3507]
[1724494374748,21.52424922,157.49,157.46,6.3507]
[1724494374968,1.52424922,157.48,157.45,23.45728583]
[1724494375766,1.52424922,157.48,157.45,17.10618583]
[1724494375969,46.52424922,157.48,157.45,17.10618583]
[1724494377467,52.87424922,157.48,157.45,1.22878583]
[1724494377768,21.77522922,157.47,157.45,1.22878583]
[1724494378169,45.0,157.46,157.45,1.22878583]
[1724494378366,45.25098,157.46,157.45,1.22878583]
[1724494378542,51.60178,157.46,157.45,1.22878583]
[1724494379959,53.12602922,157.46,157.45,1.22878583]
[1724494380151,97.890858,157.46,157.45,1.22878583]
[1724494381887,15.0697,157.45,157.36,15.8868]
[1724494382078,1.52424922,157.44,157.36,15.8868]
[1724494382282,25.01580878,157.43,157.36,15.8868]
[1724494382451,46.52424922,157.42,157.36,15.8868]
[1724494382650,0.12549,157.41,157.36,15.8868]
[1724494383066,1.52424922,157.4,157.36,15.8868]
[1724494383268,1.52424922,157.4,157.38,6.354]
[1724494383478,1.52424922,157.4,157.37,6.3544]
[1724494384067,1.64973922,157.41,157.37,6.3544]
[1724494385374,8.00263922,157.41,157.37,6.3544]
[1724494386553,1.64973922,157.41,157.37,6.3544]
[1724494387148,0.12549,157.41,157.36,15.8868]
[1724494387353,6.3541,157.38,157.33,22.2458]
[1724494387584,6.3541,157.38,157.3,6.1886]
[1724494387585,15.0697,157.36,157.29,0.8537466]
[1724494387751,24.76482878,157.33,157.29,0.8537466]
[1724494387954,1.52424922,157.34,157.29,0.8537466]
[1724494388189,1.52424922,157.35,157.29,16.7469466]
[1724494388355,66.52424922,157.35,157.29,16.7469466]
[1724494390071,45.12549,157.33,157.29,0.8537466]
[1724494390277,45.12549,157.32,157.29,0.8537466]
[1724494390484,0.12549,157.31,157.29,0.8537466]
[1724494390658,65.12549,157.32,157.29,0.8537466]
[1724494391184,1.52424922,157.31,157.29,0.8537466]
[1724494391686,45.12549,157.32,157.29,0.8537466]
[1724494392384,1.52424922,157.31,157.29,0.8537466]
[1724494392586,1.52424922,157.34,157.29,0.8537466]
[1724494392893,1.52424922,157.35,157.31,6.3567]
[1724494393095,7.87984922,157.35,157.3,6.3572]
[1724494393271,7.87984922,157.35,157.29,23.1045466]
[1724494393272,6.3557,157.34,157.29,23.1045466]
[1724494393469,6.3562,157.33,157.29,0.8537466]
[1724494394273,45.25098,157.32,157.29,0.8537466]
[1724494394478,45.12549,157.32,157.29,0.8537466]
[1724494396179,45.12549,157.32,157.29,7.2113466]
[1724494396384,1.52424922,157.34,157.29,16.7475466]
[1724494396894,1.52424922,157.34,157.31,6.3567]
[1724494397086,1.52424922,157.34,157.29,16.7475466]
[1724494397395,6.3564,157.33,157.29,16.7475466]
[1724494397595,0.25098,157.32,157.29,16.7475466]
[1724494397901,46.64973922,157.32,157.29,23.1050466]
[1724494398073,1.52424922,157.32,157.29,23.1050466]
[1724494398909,1.52424922,157.32,157.29,16.7475466]
[1724494399078,51.48159,157.33,157.29,16.7475466]
[1724494399277,1.77522922,157.32,157.29,23.1051466]
[1724494399592,46.64973922,157.33,157.29,23.1051466]
[1724494399792,46.52424922,157.33,157.3,6.3572]
[1724494399981,1.52424922,157.34,157.3,6.3572]
[1724494400185,21.52424922,157.34,157.3,6.3572]
[1724494400375,21.52424922,157.34,157.29,16.7475466]
[1724494400376,21.52424922,157.34,157.31,6.3568]
[1724494400572,15.0697,157.36,157.32,6.3562]
[1724494400794,1.52424922,157.35,157.32,6.3562]
[1724494401779,46.52424922,157.35,157.32,6.3562]
[1724494402296,45.0,157.36,157.32,6.3562]
[1724494402496,0.12549,157.35,157.32,6.3562]
[1724494402708,1.64973922,157.35,157.32,6.3562]
[1724494403007,1.64973922,157.35,157.31,6.3567]
[1724494404446,1.52424922,157.35,157.31,15.8912]
[1724494404711,1.52424922,157.35,157.33,6.356]
[1724494404907,1.52424922,157.36,157.34,15.8889]
[1724494405210,1.52424922,157.37,157.34,15.8889]
[1724494405513,1.52424922,157.37,157.34,22.2442]
[1724494405713,1.52424922,157.37,157.34,15.8889]
[1724494405927,7.87904922,157.37,157.32,6.3561]
[1724494406822,45.12549,157.36,157.32,6.3561]
[1724494407621,20.0,157.38,157.34,6.3555]
[1724494407799,20.0,157.38,157.35,6.3551]
[1724494408404,20.0,157.38,157.34,6.3555]
[1724494408601,21.52424922,157.38,157.34,6.3555]
[1724494409611,0.12549,157.37,157.33,22.246]
[1724494409923,51.47989,157.37,157.33,22.246]
[1724494411725,53.00413922,157.37,157.33,22.246]
[1724494413917,6.3548,157.36,157.33,15.89]
[1724494414109,51.47999,157.37,157.33,15.89]
[1724494414413,46.64973922,157.37,157.33,22.2457]
[1724494414592,1.52424922,157.37,157.33,22.2457]
[1724494415120,1.52424922,157.37,157.33,15.89]
[1724494415121,7.87904922,157.37,157.33,15.89]
[1724494415609,6.3548,157.37,157.33,22.246]
[1724494416207,7.87904922,157.37,157.33,22.246]
[1724494416511,6.355,157.36,157.3,15.8928]
[1724494416708,16.29719435,157.36,157.32,6.3563]
[1724494417100,11.46644357,157.37,157.33,6.356]
[1724494417506,17.82114357,157.37,157.32,22.247]
[1724494417698,0.12549,157.39,157.32,22.247]
[1724494417699,0.12549,157.39,157.32,15.8906]
[1724494417905,1.52424922,157.38,157.32,15.8906]
[1724494418622,1.52424922,157.38,157.34,6.3555]
[1724494421709,45.0,157.39,157.36,6.3544]
[1724494422031,1.52424922,157.38,157.34,15.8885]
[1724494423138,21.52424922,157.38,157.34,15.8885]
[1724494423318,27.87844922,157.38,157.34,15.8885]
[1724494423630,61.42218435,157.37,157.34,15.8885]
[1724494423923,1.52424922,157.36,157.34,15.8885]
[1724494425011,11.46644357,157.35,157.29,0.8537466]
[1724494425214,11.46644357,157.35,157.3,6.3572]
[1724494425215,9.94219435,157.33,157.3,6.3572]
[1724494425532,11.46644357,157.33,157.3,6.3572]
[1724494425723,1.52424922,157.32,157.3,6.3572]
[1724494426530,1.52424922,157.32,157.29,0.8537466]
[1724494426531,46.52424922,157.32,157.29,0.8537466]
[1724494428315,52.88074922,157.32,157.29,0.8537466]
[1724494428516,9.94219435,157.31,157.29,0.8537466]
[1724494428830,1.52424922,157.3,157.29,0.8537466]
[1724494429039,17.82324357,157.31,157.29,0.8537466]
[1724494429726,51.48269,157.3,157.29,0.8537466]
[1724494430715,45.12549,157.3,157.29,0.8537466]
[1724494430917,0.12549,157.32,157.29,0.8537466]
[1724494431130,81.42428435,157.32,157.29,0.8537466]
[1724494433333,56.59193357,157.32,157.29,0.8537466]
[1724494433723,21.6299,157.33,157.29,7.2112466]
[1724494433724,16.79794922,157.33,157.29,7.2112466]
[1724494433931,9.94219435,157.32,157.29,7.2112466]
[1724494434635,11.46644357,157.32,157.29,7.2112466]
[1724494436236,9.94219435,157.32,157.29,0.8537466]
[1724494436414,9.94219435,157.3,157.29,0.8537466]
[1724494438138,55.06768435,157.3,157.29,0.8537466]
[1724494438334,62.94913357,157.3,157.29,0.8537466]
[1724494438635,82.94913357,157.3,157.29,0.8537466]
[1724494440014,83.07462357,157.3,157.29,0.8537466]
[1724494440818,71.48269,157.3,157.29,0.8537466]
[1724494441018,26.3572,157.3,157.29,0.8537466]
[1724494441343,73.13242922,157.3,157.29,0.8537466]
[1724494441912,71.60818,157.3,157.29,0.8537466]
[1724494442342,73.00693922,157.3,157.29,0.8537466]
[1724494443535,65.12549,157.3,157.29,0.8537466]
[1724494443717,20.0,157.3,157.29,0.8537466]
[1724494445020,26.3572,157.3,157.29,0.8537466]
[1724494445519,20.0,157.3,157.29,0.8537466]
[1724494446953,16.29909435,157.31,157.29,0.8537466]
[1724494447241,20.0,157.3,157.29,0.8537466]
[1724494448429,29.94219435,157.3,157.29,0.8537466]
[1724494448943,36.29939435,157.3,157.29,0.8537466]
[1724494449644,20.0,157.3,157.29,0.8537466]
[1724494452347,27.88144922,157.3,157.29,0.8537466]
[1724494452539,26.3572,157.3,157.29,0.8537466]
[1724494453528,27.88144922,157.3,157.29,0.8537466]
[1724494453725,20.0,157.3,157.29,0.8537466]
[1724494455457,9.94219435,157.32,157.29,0.8537466]
[1724494455838,16.29869435,157.32,157.29,0.8537466]
[1724494457154,9.94219435,157.32,157.29,0.8537466]
[1724494457652,11.46644357,157.32,157.29,0.8537466]
[1724494458433,11.46644357,157.32,157.29,7.2113466]
[1724494458957,9.94219435,157.32,157.29,7.2113466]
[1724494459159,6.3557,157.34,157.29,0.8537466]
[1724494459459,36.29849435,157.33,157.29,0.8537466]
[1724494459650,1.52424922,157.32,157.29,0.8537466]
[1724494459954,36.29849435,157.33,157.29,0.8537466]
[1724494460154,1.52424922,157.32,157.29,0.8537466]
[1724494460846,1.52424922,157.32,157.29,11.0532566]
[1724494461051,36.29849435,157.33,157.29,11.0532566]
[1724494462256,1.52424922,157.32,157.29,11.0532566]
[1724494464157,36.29849435,157.33,157.29,11.0532566]
[1724494464335,29.94219435,157.33,157.3,6.3572]
[1724494464535,9.94219435,157.33,157.3,6.3572]
[1724494464743,9.94219435,157.35,157.31,6.3568]
[1724494465048,20.0,157.34,157.3,6.3571]
[1724494465630,9.94219435,157.35,157.32,6.3564]
[1724494465860,15.1388,157.37,157.33,6.3559]
[1724494466230,1.52424922,157.36,157.33,6.3559]
[1724494467245,7.87904922,157.36,157.31,22.2482]
[1724494467429,1.52424922,157.35,157.31,22.2482]
[1724494467657,9.94219435,157.34,157.31,15.8917]
[1724494467958,1.52424922,157.33,157.3,6.3571]
[1724494468158,9.94219435,157.34,157.3,6.3571]
[1724494468733,7.87954922,157.35,157.3,6.3571]
[1724494468963,17.82174357,157.35,157.3,6.3571]
[1724494470565,17.82174357,157.35,157.31,6.3567]
[1724494471667,16.29709435,157.36,157.32,6.3564]
[1724494472337,17.82134357,157.36,157.32,6.3564]
[1724494474544,7.87944922,157.35,157.3,22.2495]
[1724494474871,9.94219435,157.34,157.3,22.2495]
[1724494477764,9.94219435,157.34,157.31,6.3568]
[1724494479276,9.94219435,157.34,157.3,22.2498]
[1724494479964,11.46644357,157.34,157.29,4.6957566]
[1724494480165,16.29939435,157.3,157.29,4.6957566]
[1724494481364,6.3572,157.3,157.29,4.6957566]
[1724494481672,22.889,157.31,157.29,4.6957566]
[1724494482043,16.5321,157.31,157.29,4.6957566]
[1724494482249,6.3572,157.3,157.29,4.6957566]
[1724494484271,16.29939435,157.3,157.29,4.6957566]
[1724494484515,81.42488435,157.3,157.29,4.6957566]
[1724494484945,82.94913357,157.3,157.29,4.6957566]
[1724494486281,66.64973922,157.3,157.29,4.6957566]
[1724494486577,82.94913357,157.3,157.29,4.6957566]
[1724494487856,81.42488435,157.3,157.29,4.6957566]
[1724494488059,36.29939435,157.3,157.29,4.6957566]
[1724494490679,37.82364357,157.3,157.29,4.6957566]
[1724494491695,36.29939435,157.3,157.29,4.6957566]
[1724494494196,26.3572,157.3,157.29,4.6957566]
[1724494494506,36.29939435,157.3,157.29,4.6957566]
[1724494495991,37.82364357,157.3,157.29,4.6957566]
[1724494496174,83.07462357,157.3,157.29,4.6957566]
[1724494499079,83.07462357,157.3,157.23,6.3599]
[1724494499080,16.30069435,157.27,157.23,6.3599]
[1724494500796,9.94219435,157.27,157.23,6.3599]
[1724494501200,6.3577,157.29,157.24,7.63145398]
[1724494501364,20.0,157.28,157.24,7.63145398]
[1724494501768,26.3581,157.28,157.24,7.63145398]
[1724494502123,9.94219435,157.33,157.24,9.94219435]
[1724494502289,6.3568,157.31,157.28,15.8942]
[1724494502477,6.3568,157.31,157.27,6.3584]
[1724494503002,6.3578,157.29,157.25,15.8977]
[1724494503201,6.3584,157.28,157.22,6.3601]
[1724494503396,6.3584,157.28,157.21,15.9019]
[1724494503697,6.3584,157.28,157.23,6.3597]
[1724494504790,9.94219435,157.29,157.25,22.2567]
[1724494504993,16.29989435,157.29,157.25,15.8975]
[1724494506007,6.3581,157.28,157.24,6.3596]
[1724494507032,9.94219435,157.29,157.19,21.8335]
[1724494507199,6.3581,157.28,157.23,6.36]
[1724494509008,6.3581,157.28,157.24,6.3596]
[1724494509297,16.29989435,157.29,157.24,6.3593]
[1724494509536,16.29989435,157.29,157.25,1.27183349]
[1724494509537,20.0,157.28,157.25,1.27183349]
[1724494509798,20.0,157.28,157.24,7.63102522]
[1724494510804,20.0,157.28,157.25,6.3591]
[1724494512019,9.94219435,157.32,157.26,6.3587]
[1724494512208,26.3569,157.31,157.27,6.3584]
[1724494513817,20.0,157.31,157.3,6.3572]
[1724494514129,16.39339435,157.34,157.28,15.8945]
[1724494514301,26.3563,157.33,157.28,22.2525]
[1724494514988,1.52424922,157.32,157.28,22.2525]
[1724494516105,26.3563,157.33,157.28,22.2525]
[1724494517117,26.3563,157.33,157.3,6.3572]
[1724494517118,20.0,157.33,157.3,6.3572]
[1724494517320,20.0,157.33,157.29,6.3575]
[1724494517695,20.0,157.33,157.3,6.357]
[1724494518015,21.5658,157.35,157.3,6.357]
[1724494518016,15.2105,157.35,157.3,15.8923]
[1724494518201,6.3548,157.37,157.31,1.27130346]
[1724494518400,6.3548,157.37,157.32,6.3561]
[1724494518598,6.3541,157.38,157.33,6.3557]
[1724494518813,26.67694357,157.39,157.32,15.8904]
[1724494519006,15.2105,157.39,157.36,15.8864]
[1724494520422,6.2366,157.42,157.36,15.8864]
[1724494520423,16.17879435,157.42,157.36,15.8864]
[1724494520592,1.52424922,157.41,157.36,15.8864]
[1724494521029,8.40605368,157.44,157.38,15.8842]
[1724494521203,6.3512,157.45,157.4,6.3531]
[1724494522296,7.87504922,157.46,157.41,6.3527]
[1724494522893,11.46644357,157.46,157.38,15.8842]
[1724494523097,11.46644357,157.46,157.38,22.2381]
[1724494523098,9.94219435,157.42,157.38,22.2381]
[1724494523319,1.52424922,157.41,157.38,15.8842]
[1724494523599,16.29459435,157.42,157.38,15.8842]
[1724494524202,15.2105,157.47,157.39,1.27067944]
[1724494524403,75.19317435,157.46,157.39,1.27057245]
[1724494524805,6.3519,157.44,157.39,7.62407245]
[1724494525017,20.0,157.43,157.39,6.3535]
[1724494525225,26.352,157.43,157.38,15.8842]
[1724494526118,20.0,157.43,157.39,6.3536]
[1724494527106,9.94219435,157.44,157.4,7.62377615]
[1724494528219,9.94219435,157.44,157.4,6.3532]
[1724494528814,6.3512,157.45,157.41,6.3528]
[1724494529021,20.0,157.44,157.41,6.3528]
[1724494529728,26.3512,157.45,157.4,6.3531]
[1724494530297,20.0,157.45,157.41,7.62320787]
[1724494530503,20.0,157.45,157.41,6.3528]
[1724494530907,15.2105,157.47,157.43,6.3516]
[1724494531110,6.23310474,157.53,157.44,15.8782]
[1724494531429,6.23310474,157.53,157.4,6.2096]
[1724494531430,25.64509435,157.55,157.49,15.8733]
[1724494531606,6.3479,157.54,157.49,22.2228]
[1724494531800,6.348,157.53,157.49,22.2228]
[1724494532005,1.52424922,157.52,157.5,6.349]
[1724494532227,1.52424922,157.52,157.49,15.8733]
[1724494532228,9.94219435,157.51,157.47,6.3503]
[1724494532429,17.81534357,157.51,157.46,22.2271]
[1724494532929,9.94219435,157.51,157.47,6.35]
[1724494533219,6.3484,157.52,157.47,6.35]
[1724494533418,1.52424922,157.51,157.47,6.35]
[1724494533605,16.29059435,157.52,157.47,6.35]
[1724494533807,6.3484,157.52,157.47,6.35]
[1724494534008,16.29059435,157.52,157.47,6.35]
[1724494534314,25.64509435,157.55,157.48,1.26990028]
[1724494534630,6.3479,157.54,157.49,6.3495]
[1724494534939,6.3479,157.54,157.49,7.61922888]
[1724494535309,6.348,157.53,157.48,6.3499]
[1724494535509,16.29069435,157.52,157.46,15.8766]
[1724494535809,16.29069435,157.52,157.47,6.35]
[1724494536530,6.3485,157.52,157.47,6.35]
[1724494536902,32.68362952,157.54,157.48,6.3496]
[1724494537220,26.3482,157.53,157.48,6.3496]
[1724494540923,26.3482,157.53,157.49,6.3495]
[1724494541437,20.0,157.53,157.49,6.3495]
[1724494542526,20.0,157.53,157.48,6.3499]
[1724494542734,20.0,157.54,157.48,6.3499]
[1724494542907,15.7792,157.52,157.46,15.8766]
[1724494543233,21.52424922,157.51,157.46,15.8766]
[1724494543404,27.87314922,157.51,157.46,22.227]
[1724494543832,26.3489,157.51,157.47,6.3503]
[1724494544924,27.87314922,157.51,157.46,22.2274]
[1724494545544,20.0,157.51,157.47,6.3502]
[1724494546035,20.0,157.51,157.49,15.8738]
[1724494546211,20.0,157.51,157.43,6.2096]
[1724494546409,20.0,157.51,157.47,6.3503]
[1724494549031,20.0,157.51,157.48,6.3499]
[1724494549929,20.0,157.51,157.46,15.8768]
[1724494550120,20.0,157.51,157.47,6.3501]
[1724494551138,6.3487,157.52,157.47,6.3501]
[1724494551316,20.0,157.51,157.47,6.3501]
[1724494553037,6.3487,157.52,157.48,6.3499]
[1724494554926,6.3487,157.52,157.47,6.3503]
[1724494555412,6.3488,157.51,157.47,6.3503]
[1724494555615,24.8114803,157.53,157.46,15.8768]
[1724494555916,6.3489,157.51,157.47,6.3504]
[1724494556117,6.3484,157.52,157.48,6.3498]
[1724494556749,7.87264922,157.52,157.48,6.3498]
[1724494558040,6.3484,157.52,157.48,6.3498]
[1724494558241,6.3481,157.53,157.48,6.3498]
[1724494558411,20.0,157.52,157.49,1.26969246]
[1724494558615,20.0,157.52,157.48,6.3498]
[1724494559420,26.3484,157.52,157.48,6.3498]
[1724494560223,20.0,157.52,157.49,6.3495]
[1724494560437,22.1264,157.55,157.5,7.61857111]
[1724494560731,6.3476,157.54,157.5,7.61857111]
[1724494561436,6.3476,157.54,157.51,1.26961652]
[1724494561834,6.3476,157.54,157.5,6.3489]
[1724494562248,6.3476,157.54,157.51,1.26960572]
[1724494562744,6.3487,157.52,157.48,15.8744]
[1724494562916,9.9238748,157.51,157.48,22.2243]
[1724494563542,17.79622402,157.53,157.48,22.2243]
[1724494563740,16.2719748,157.53,157.48,22.2243]
[1724494564125,16.2719748,157.53,157.49,1.26975344]
[1724494564328,16.2719748,157.53,157.48,22.2243]
[1724494564623,16.2719748,157.53,157.49,1.26972465]
[1724494564829,16.2719748,157.53,157.49,7.61922465]
[1724494565143,16.2719748,157.53,157.49,6.3495]
[1724494565318,9.9238748,157.53,157.5,7.61878776]
[1724494565513,6.3476,157.54,157.5,7.61878776]
[1724494565948,9.9238748,157.53,157.5,6.3491]
[1724494566119,9.9238748,157.53,157.49,6.3495]
[1724494566320,11.44812402,157.53,157.45,15.8776]
[1724494566515,9.9238748,157.51,157.45,15.8776]
[1724494568232,16.2737748,157.49,157.45,15.8776]
[1724494568432,16.2737748,157.49,157.45,22.2287]
[1724494569930,16.2737748,157.49,157.45,15.8776]
[1724494570349,9.9238748,157.47,157.45,15.8776]
[1724494572140,9.9238748,157.47,157.44,6.3515]
[1724494572339,11.44812402,157.47,157.42,15.8806]
[1724494572645,9.9238748,157.47,157.42,22.2329]
[1724494573148,16.2742748,157.47,157.42,22.2329]
[1724494574443,16.2742748,157.47,157.43,1.59015978]
[1724494574618,16.2742748,157.47,157.42,22.2329]
[1724494574821,16.2742748,157.47,157.43,1.59015978]
[1724494575031,16.2742748,157.47,157.42,22.2329]
[1724494575229,16.2742748,157.47,157.43,1.59015134]
[1724494575421,16.2742748,157.47,157.42,22.2329]
[1724494575632,16.2742748,157.47,157.43,1.59020198]
[1724494575831,16.2742748,157.47,157.42,22.2329]
[1724494579647,15.336,157.49,157.38,5.78748595]
[1724494579648,16.2751748,157.45,157.41,6.3527]
[1724494579835,6.352,157.44,157.4,3.57871755]
[1724494580147,9.9238748,157.43,157.39,22.237]
[1724494580351,15.336,157.57,157.44,5.9297]
[1724494580645,15.336,157.57,157.52,6.348]
[1724494580834,15.336,157.57,157.52,7.61740674]
[1724494581745,9.9238748,157.55,157.51,15.8717]
[1724494581950,15.336,157.57,157.51,15.8717]
[1724494582251,9.9238748,157.56,157.52,6.3483]
[1724494582438,15.336,157.57,157.52,6.3483]
[1724494582439,40.13763071,157.57,157.52,6.3483]
[1724494582638,40.13763071,157.57,157.51,15.8717]
[1724494583138,40.13763071,157.57,157.52,6.3483]
[1724494583536,6.3472,157.55,157.49,6.3495]
[1724494583741,24.80163071,157.51,157.47,22.2255]
[1724494584138,24.80163071,157.53,157.47,22.2255]
[1724494584324,20.0,157.52,157.47,22.2255]
[1724494586039,20.0,157.52,157.48,1.26986078]
[1724494586357,20.0,157.52,157.47,22.2255]
[1724494586939,20.0,157.52,157.48,1.26986157]
[1724494587134,20.0,157.52,157.49,6.3495]
[1724494587347,20.0,157.53,157.49,6.3495]
[1724494588057,20.0,157.53,157.48,6.3499]
[1724494589638,20.0,157.53,157.49,6.3493]
[1724494589837,40.13763071,157.57,157.5,15.873]
[1724494590037,21.6824,157.57,157.52,6.3483]
[1724494590242,21.6824,157.57,157.53,6.3479]
[1724494590243,15.336,157.57,157.53,6.3479]
[1724494590453,15.336,157.57,157.54,1.26941862]
[1724494590756,6.3454,157.6,157.54,1.26941862]
[1724494591139,6.3454,157.6,157.55,6.347]
[1724494591347,6.3456,157.59,157.52,15.8702]
[1724494591739,20.0,157.58,157.54,6.3475]
[1724494592346,26.3459,157.58,157.54,6.3475]
[1724494592948,26.3459,157.58,157.53,6.3479]
[1724494593667,1.52424922,157.57,157.53,6.3479]
[1724494594868,27.87014922,157.58,157.53,6.3479]
[1724494595353,26.3459,157.58,157.53,6.3479]
[1724494597272,1.52424922,157.57,157.53,6.3479]
[1724494598274,27.87014922,157.58,157.53,6.3479]
[1724494598778,7.87014922,157.58,157.53,6.3479]
[1724494601166,22.8022,157.61,157.56,6.3466]
[1724494601375,20.0,157.6,157.57,6.3462]
[1724494602044,20.0,157.6,157.56,6.3467]
[1724494604776,20.0,157.6,157.57,6.3463]
[1724494605672,20.0,157.6,157.56,6.3467]
[1724494606859,20.0,157.6,157.57,6.346]
[1724494607152,20.0,157.6,157.58,6.3459]
[1724494608249,20.0,157.6,157.56,15.8664]
[1724494608470,20.0,157.6,157.52,6.0377]
[1724494608665,20.0,157.6,157.53,45.25098]
[1724494609490,20.0,157.6,157.58,6.3459]
[1724494610363,20.0,157.6,157.55,15.8674]
[1724494610564,20.0,157.6,157.56,1.26913025]